Cogmind - Beta 11 @@@ ROGUE MODE // 2022.03.26 @ 15:06:30 Player: Cracklepappy Result: Destroyed by D-53 Grenadier with Mini Grenade Launcher Performance ------------- Evolutions (0) 0 Regions Visited (2) 400 Robots Destroyed (30) 150 Value Destroyed (793) 793 Prototype IDs (4) 80 Alien Tech Used (0) 0 Bonus (0) 0 TOTAL SCORE: 1423 Bonus ------- None Cogmind --------- Core Integrity 0/250 Matter 214/300 Energy 154/160 System Corruption 0% Temperature Cool (0) Movement Treading (240) Ox1 Location -10/Mines Parts ------- > --- POWER (1) -------- Light Nuclear Core > --- PROPULSION (2) --- Light Treads > --- UTILITY (2) ------ Large Storage Unit Improved Targeting Computer > --- WEAPON (2) ------- Autogun Autogun > --- INVENTORY (15) --- Light Nuclear Core Light Treads Aluminum Leg Medium Storage Unit Medium Storage Unit Large Storage Unit Large Matter Pod (64) Improved Targeting Computer Improved Targeting Computer Improved Targeting Computer Assault Rifle Grenade Launcher Mining Laser Peak State ------------ > --- POWER ------------ Light Nuclear Core > --- PROPULSION ------- Light Treads Light Treads > --- UTILITY ---------- Large Storage Unit Improved Targeting Computer > --- WEAPON ----------- Autogun Autogun > --- INVENTORY -------- Light Nuclear Core Light Treads Aluminum Leg Medium Storage Unit Medium Storage Unit Large Storage Unit Large Matter Pod Improved Targeting Computer Improved Targeting Computer Improved Targeting Computer Assault Rifle Autogun Grenade Launcher Mining Laser [Rating: 14] Favorites ----------- Power Ion Engine Engine Ion Engine Power Core Light Nuclear Core Propulsion Light Treads Treads Light Treads Wheel Wheel Utility Large Storage Unit Device ECM Suite Storage Large Storage Unit Processor Improved Targeting Computer Weapon Autogun Energy Gun Medium Laser Ballistic Gun Autogun Launcher Grenade Launcher Build | -11 -10 -10 ------- Run | Scr Mat Min Slots Evolved . | . . . Power . | . . . Propulsion . | . . . Utility . | . . . Weapon . | . . . Parts Attached 21 | 7 7 7 Power 2 | 1 . 1 Engine 1 | 1 . . Core 1 | . . 1 Reactor . | . . . Propulsion 4 | 2 2 . Treads 2 | 1 1 . Leg . | . . . Wheel 2 | 1 1 . Hover . | . . . Flight . | . . . Utility 5 | 2 3 . Device 1 | . 1 . Storage 3 | 2 1 . Processor 1 | . 1 . Hackware . | . . . Protection . | . . . Artifact . | . . . Weapon 10 | 2 2 6 Energy Gun 2 | 2 . . Energy Cannon . | . . . Ballistic Gun 6 | . 2 4 Ballistic Cannon . | . . . Launcher 2 | . . 2 Special Weapon . | . . . Impact Weapon . | . . . Slashing Weapon . | . . . Piercing Weapon . | . . . Special Melee Weapon . | . . . Unidentified Prototypes . | . . . Parts Lost 5 | . 1 4 Power 1 | . . 1 Propulsion 2 | . 1 1 Utility . | . . . Weapon 2 | . . 2 Highest Loss Streak 2 | . 1 2 To Critical Strikes . | . . . Average Slot Usage (%) 98 | . 98 98 Engine 13 | . 14 10 Treads 19 | . 16 27 Wheel 8 | . 11 . Storage 17 | . 17 14 Processor 9 | . 7 14 Energy Gun 1 | . 1 . Ballistic Gun 26 | . 26 27 Naked Turns . | . . . Heaviest Build 36 | 18 36 31 Greatest Support 40 | 20 40 40 Greatest Overweight (x) 3 | 1 3 . Average Overweight (x) 1 | . 1 . Largest Inventory Capacity 15 | 8 15 15 Average Capacity 12 | 7 12 15 Most Carried 15 | 8 15 15 Average Carried 12 | 5 12 14 Final Capacity 15 | 8 15 15 Final Carried 15 | 8 15 13 Class Distribution -------------------- 100% | Mutant Dominant Class ---------------- Mutant | -10/Materials Mutant | -10/Mines Resources | -11 -10 -10 ----------- Run | Scr Mat Min Matter Collected 935 | 270 568 97 Remotely . | . . . Salvage Created 1030 | 116 793 121 Parts 67 | 4 52 11 Haulers Intercepted 1 | . 1 . Recyclers Shooed . | . . . Parts Field Recycled . | . . . Retrieved Matter . | . . . Parts Self-Destructed . | . . . Prevented . | . . . Kills | -11 -10 -10 ------- Run | Scr Mat Min Combat Hostiles Destroyed 30 | . 16 14 Guns 18 | . 16 2 AOE 12 | . . 12 Classes Destroyed 9 | 2 5 2 Builder 2 | . 1 1 Tunneler 1 | 1 . . Hauler 1 | . 1 . Recycler 1 | 1 . . Operator 1 | . 1 . Watcher 3 | . 3 . Swarmer 3 | . . 3 Grunt 18 | . 16 2 Assembled 9 | . . 9 Best Kill Streak 10 | 1 4 10 Combat Bots Only 9 | . 3 9 Max Kills in Single Turn 4 | 1 1 4 Gunslinging . | . . . Exploded 4 | . . 4 Melee . | . . . Uniques/NPCs Destroyed . | . . . Combat | -11 -10 -10 -------- Run | Scr Mat Min Damage Taken 999 | . 437 562 Core 264 | . 93 171 Absorbed by Shields . | . . . Core Remaining (%) 100 | 100 . . Volleys Fired 81 | 9 58 14 Largest 2 | 2 2 2 Hottest 90 | 90 90 46 Shots Fired 156 | 18 116 22 Gun 150 | 18 116 16 Cannon . | . . . Launcher 6 | . . 6 Special . | . . . Kinetic 128 | . 112 16 Thermal 22 | 18 4 . Explosive 6 | . . 6 Electromagnetic . | . . . Robot Hit Streak 17 | 4 17 9 Robot Miss Streak 4 | 2 4 3 Penetration Max . | . . . Secondary Targets 1 | . 1 . Max Gunslinging Chain 1 | . 1 . Shots Hit Robots 104 | 11 78 15 Core Hits 70 | 3 31 36 Critical Kills . | . . . Critical Parts Destroyed . | . . . Critical Strikes 1 | 1 . . Burn 1 | 1 . . Melee Attacks . | . . . Impact . | . . . Slashing . | . . . Piercing . | . . . Sneak Attacks . | . . . Combat Hostiles . | . . . Follow-up Attacks . | . . . Damage Inflicted 2406 | 179 1211 1016 Guns 1551 | 179 1211 161 Cannons . | . . . Explosions 855 | . . 855 Melee . | . . . Ramming . | . . . Kinetic 1337 | . 1176 161 Thermal 214 | 179 35 . Explosive 855 | . . 855 Electromagnetic . | . . . Impact . | . . . Slashing . | . . . Piercing . | . . . Highest Corruption . | . . . Average Corruption . | . . . Corruption Purged . | . . . Corruption Blocked . | . . . Overload Shots . | . . . Overflow Damage 22 | . . 22 Projectiles . | . . . Explosions 22 | . . 22 Melee . | . . . Knockbacks . | . . . Impact . | . . . Kinetic . | . . . Secondary . | . . . Self-Inflicted Damage 22 | . . 22 Shots 1 | . . 1 Rammed . | . . . Targets Rammed . | . . . Kicked . | . . . Crushed . | . . . Highest Temperature 120 | 120 60 17 Average Temperature 20 | 52 12 7 Received Heat Transfer 299 | . 246 53 Siege Activations . | . . . Robots Corrupted . | . . . Combat Hostiles . | . . . Parts Fried . | . . . Impact Corruptions . | . . . Robots Melted . | . . . Combat Hostiles . | . . . Parts Melted . | . . . Heat Transferred 632 | 545 87 . Parts Sabotaged . | . . . Parts Stolen . | . . . Parts Stripped . | . . . Power Chain Reactions . | . . . Missiles Intercepted . | . . . Alert | -11 -10 -10 ------- Run | Scr Mat Min Peak Influence 290 | 10 290 275 Initial 50 | . 6 50 Average 120 | 3 131 119 Maximum Alert Level 1 | . 1 1 Low Security (%) 84 | 100 84 76 Level 1 15 | . 15 23 Level 2 . | . . . Level 3 . | . . . Level 4 . | . . . Level 5 . | . . . High Security . | . . . Max Security . | . . . Squads Dispatched 3 | . 3 . Investigation 3 | . 3 . Extermination . | . . . Reinforcement . | . . . Assault . | . . . Garrison . | . . . Intercept . | . . . Searches Triggered . | . . . Construction Impeded . | . . . Haulers Reinforced . | . . . Active Scanning Responses . | . . . Cargo Convoy Interrupts . | . . . Stealth | -11 -10 -10 --------- Run | Scr Mat Min Distress Signals . | . . . Communications Jammed . | . . . Distress Signals . | . . . Times Spotted 48 | . 22 26 Peak Tracking Total 19 | . 3 19 Tactical Retreats 2 | . 1 1 Traps | -11 -10 -10 ------- Run | Scr Mat Min Traps Triggered 1 | . 1 . Indirectly . | . . . Trap Hack Attempts . | . . . Triggered . | . . . Disarmed . | . . . Reprogrammed . | . . . Reused . | . . . Traps Extracted . | . . . Installed . | . . . Triggered . | . . . Machines | -11 -10 -10 ---------- Run | Scr Mat Min Machines Disabled 2 | . 1 1 Max in Single Turn 1 | . 1 1 Machines Sabotaged . | . . . Garrisons Compromised . | . . . Overloaded Fab Kills . | . . . Hacking | -11 -10 -10 --------- Run | Scr Mat Min Machines Accessed 7 | . 7 . Terminals 6 | . 6 . Fabricators . | . . . Repair Stations . | . . . Recycling Units 1 | . 1 . Scanalyzers . | . . . Garrison Access . | . . . Total Hacks 20 | . 20 . Successful 8 | . 8 . Failed 12 | . 12 . Catastrophic 1 | . 1 . Database Lockouts . | . . . Manual 10 | . 10 . Terminals 19 | . 19 . Fabricators . | . . . Repair Stations . | . . . Recycling Units 1 | . 1 . Scanalyzers . | . . . Garrison Access . | . . . Terminal Hacks 7 | . 7 . Part Schematic 2 | . 2 . Prototype ID Bank 2 | . 2 . Alert Level 1 | . 1 . Unreport Threat 1 | . 1 . Hauler Manifests 1 | . 1 . Fabricator Hacks . | . . . Repair Station Hacks . | . . . Recycling Unit Hacks . | . . . Scanalyzer . | . . . Garrison Access Hacks . | . . . Unauthorized Hacks 1 | . 1 . Terminals . | . . . Fabricators . | . . . Repair Stations . | . . . Recycling Units 1 | . 1 . Tunnel 1 | . 1 . Scanalyzers . | . . . Garrison Access . | . . . Data Cores Recovered 1 | . 1 . Used 1 | . 1 . Hacking Detections 6 | . 6 . Full Trace Events 1 | . 1 . Feedback Events . | . . . Feedback Blocked . | . . . Robot Schematics Acquired . | . . . Robots Built . | . . . Authchips . | . . . Time . | . . . Total Robot Build Rating . | . . . Part Schematics Acquired 2 | . 2 . Parts Built . | . . . Authchips . | . . . Time . | . . . Total Part Build Rating . | . . . Parts Repaired . | . . . Time . | . . . Parts Recycled . | . . . Recycled Matter . | . . . Retrieved Matter . | . . . Retrieved Components . | . . . Parts Scanalyzed . | . . . Part Schematics Acquired . | . . . Parts Damaged . | . . . Bothacking | -11 -10 -10 ------------ Run | Scr Mat Min Used RIF Installer . | . . . Robots Hacked . | . . . Non-combat . | . . . Combat . | . . . Robot Hacks Applied . | . . . Relay Couplers Released . | . . . Fabnet Peak Effective % . | . . . Robots Rewired . | . . . Allies Hacked . | . . . Hacks Repelled . | . . . Allies | -11 -10 -10 -------- Run | Scr Mat Min Total Allies . | . . . Largest Group . | . . . Highest-Rated Group . | . . . Highest-Rated Ally . | . . . Total Orders . | . . . Ally Attacks . | . . . Total Damage . | . . . Kills . | . . . Allies Corrupted . | . . . Allies Melted . | . . . Intel | -11 -10 -10 ------- Run | Scr Mat Min Robot Analysis Total . | . . . Derelict Logs Recovered . | . . . Drone Launches . | . . . Drone Recoveries . | . . . Exploration | -11 -10 -10 ------------- Run | Scr Mat Min Turns Passed 1490 | 109 1099 282 Spaces Moved 868 | 67 656 145 Core 7 | 7 . . Treads 288 | 2 141 145 Legs . | . . . Wheels 573 | 58 515 . Hover . | . . . Flight . | . . . Fastest Speed 50 | 50 95 160 Average Speed 128 | 88 125 160 Slowest Speed 160 | 160 160 160 Overloaded Moves . | . . . Propulsion Burnouts . | . . . Robots Hopped . | . . . Cave-ins Triggered . | . . . Exploration Rate (%) 47 | 4 97 42 Regions Visited 2 Branch Regions 1 Pre-discovered Areas 1 | . 1 . Known Exits Taken . | . . . Unknown Exits Taken 2 | 1 1 . Scrap Searched . | . . . Spaces Dug 7 | . . 7 Terrain Destroyed 38 | . . 38 Melee . | . . . Projectile . | . . . AOE 38 | . . 38 Terrain Rammed . | . . . Walls Destroyed . | . . . Machines Disabled . | . . . Actions | -11 -10 -10 --------- Run | Scr Mat Min Total 1115 | 98 843 174 Wait 108 | 4 97 7 Move 866 | 66 655 145 Hop . | . . . Pick Up 26 | 11 14 1 Fast Attach 11 | 5 6 . Attach 6 | 2 1 3 Detach . | . . . Swap 4 | . . 4 Drop 13 | 1 12 . Fire 81 | 9 58 14 Melee . | . . . Ram . | . . . Kick . | . . . Crush . | . . . Escape Stasis . | . . . Rewire . | . . . Trap . | . . . Miscellaneous . | . . . Route ------- -11/Scrapyard -10/Materials (discovered 5 exits: [*Mat x3] / [*Min x2]) -10/Mines (discovered 2 exits: [*Mat x2]) History --------- Turn | Location | Event 5 | -11/Scrapyard | Discovered new exit (range 16) 110 | -11/Scrapyard | Entered Materials 130 | -10/Materials | Discovered new exit (range 16) 272 | -10/Materials | Discovered new exit (range 15) 301 | -10/Materials | Build established: Mutant 743 | -10/Materials | Discovered new exit (range 7) 873 | -10/Materials | Discovered new exit (range 16) 995 | -10/Materials | Discovered new exit (range 16) 1209 | -10/Materials | Entered Mines 1299 | -10/Mines | Discovered new exit (range 6) 1374 | -10/Mines | Discovered new exit (range 8) 1462 | -10/Mines | Assembled infested the area 1467 | -10/Mines | Assisted by a Guerilla fighting off Assembled 1483 | -10/Mines | Core integrity fell below 50% 1490 | -10/Mines | Core integrity fell below 20% 1491 | -10/Mines | Destroyed by D-53 Grenadier with Mini Grenade Launcher Last Messages --------------- 01476_ as-39293 destroyed. 01476_ as-95220 destroyed. 01478_ as-41411 destroyed. 01478_ as-05715 destroyed. 01479_ U-05 Engineer lays Concrete. 01480_ The unstable cave ceiling collapses. 01480_ Destroyed Asb. F-torch. 01480_ Destroyed Asb. Hover Unit. 01480_ as-10779 destroyed. 01480_ U-05 Engineer destroyed. 01482_ as-31119 destroyed. 01482_ Destroyed Asb. F-torch. 01483_ The unstable cave ceiling collapses. 01483_ C-30 ARC bursts open, deploying its payload. 01483_ D-53 Grenadier unfolds itself. 01483_ as-39070 destroyed. 01483_ as-87762 destroyed. 01483_ as-05776 destroyed. 01488_ Autogun destroyed. 01489_ Lgt. Treads destroyed. Map ----- +----------------------------------------------------+ | ######### # #?????????????????????????? | | ##???????# #???? #?????????????????????????? | | ###??????### #????????##?????????????????????????? | | ?????????# #???????????????????????????????????? | | ?????????# ###???????????????????????????????????? | | ????????## #????????????????????????????????????? | | ????????# #????????????????????????????????????? | | ????????# =##???????????????????????????????????? | | ????????# #???????????????????????????????????? | | ####????# [ ##??????????????????????????????????? | | # ###### #??????????????????????????????????? | | ## """ #??????????????????????????????????? | | ## ## """ #?????????????????????????????????? | | ### """ #??????????###### ??????????????? | | #####?# ##?????????# ??????????????? | | #?????# ##????????## a ???????????????? | | ##????## #????????## ????????????????? | | ###???## #??????## * #????????????????? | | ##????# ?????? # #????????????????? | | #####? ????? #????????????????? | | # < #?# #????# #????????????????? | | ## #??# ???## #?????????????????? | | ?######## #??? ?## ##?????????????????? | | ????????# #???? ??# #?????????????????? | | ????????# #?????????# ##?????????????????? | | ????????# #?????????# @ #??????????????????? | | ????????# ########### #??????????????????? | | ????????#= ! = ## d #??????????????????? | | ????????#### ### %d ##??????????????????? | | ???????????# "" ##???????????????????? | | ???????????# """ ##????????????????????? | | ???????????# """ #########?????????????????????? | | ???????????#########?????????????????????????????? | | ?????????????????????????????????????????????????? | | | | | | | | | | | | | | | | | | | | | | | | | | | | | | | | | +----------------------------------------------------+ Best States ------------- Heat Dissipation 25 Energy Generation 14 Energy Capacity 250 Matter Stores 300 Matter Capacity 300 Sight Range 16 Terrain Scan Density 10 ECM Strength 1 Evasion (%) 44 Targeting Accuracy 6 Recoil Reduction 2 Item Schematics ----------------- Lrg. Storage Unit | -10/Materials | Hacked Huge Storage Unit | -10/Materials | Hacked Robot Schematics ------------------ None Fabricated ------------ Nothing Alien Tech Used ----------------- None Achievements -------------- None Challenges ------------ None Game ------ Seed DeliveryCouplerInsulator Manual? 0 Play Time 00:11:35 Cumulative 296.1 hours Start 2022.03.26 @ 14:56:31 End 2022.03.26 @ 15:06:30 Sessions 1 Manual Loads 0 Difficulty Rogue Special Mode None Game No. 304 Rogue 304 Adventurer 0 Explorer 0 Win Type - Total 4 Types 4/0/0/0/0/0/0/0/0 Lore% 60 Gallery% 73 Achievement% 63 Wizard Run 0 Options --------- ASCII 0 Keyboard 0 Movement Numpad Keybinds 0 Fullscreen 2 Font 24/Terminus Map View 76x50 Tactical HUD 1 Map Filters NONE Filters NONE Steam 1 RUN: a06ccc7c-4999-4484-812e-dc02ae6e64e7